Cogmind - Beta 16 @@@ ROGUE MODE // 2025.11.18 @ 03:40:51 Player: Red Box Result: Destroyed by AG-48484 with Assembled Focal Cannon Performance ------------- Evolutions (4) 2000 Regions Visited (17) 3400 Robots Destroyed (345) 1725 Value Destroyed (11129) 11129 Prototype IDs (60) 1200 Alien Tech Used (0) 0 Bonus (1488) 1488 TOTAL SCORE: 20942 Bonus ------- High Alert Combat Kills 903 Follower Combat Kills 67 Aligned with FarCom 300 Met Data Miner 300 Met Imprinter 300 Friendly Fire -382 Cogmind --------- Core Integrity 0/850 Matter 265/300 Energy 456/500 System Corruption 0% Temperature Cool (26) Movement Treading (250) Ox1 Location -6/Deep Caves Parts ------- > --- POWER (1) -------- F-cell Engine > --- PROPULSION (2) --- Armored Treads Armored Treads > --- UTILITY (10) ----- High-capacity Storage Unit Advanced Sensor Array Advanced Signal Interpreter Advanced Targeting Computer Target Analyzer Makeshift Light Armor Plating Makeshift Light Armor Plating Light Regenerative Plating > --- WEAPON (2) ------- Proton Missile Launcher > --- INVENTORY (20) --- Cold Fusion Reactor Armored Treads Medium Treads Spiked Medium Treads Multireflex Exoskeleton Advanced Myomer Leg Experimental Heat Sink Compact Battery (200) AS-neutralizer No. 17b Force Rifle Force Rifle 8R-AWN's Boregun 8R-AWN's Boregun Rocket Array Long-range Missile Launcher Peak State ------------ > --- POWER ------------ Fission Core > --- PROPULSION ------- Multireflex Exoskeleton > --- UTILITY ---------- Huge Storage Unit Advanced Sensor Array Advanced Signal Interpreter Advanced Targeting Computer Target Analyzer Kinecellerator Hardened Medium Armor Plating Light Regenerative Plating Thermal Shield Improved System Guard > --- WEAPON ----------- 8R-AWN's Boregun 8R-AWN's Boregun > --- INVENTORY -------- Cold Fusion Reactor Armored Treads Armored Treads Armored Treads Advanced Myomer Leg Advanced Myomer Leg Experimental Heat Sink High-capacity Storage Unit Tactical Coordination Suite Remote Shield Improved Trap Extractor Improved Field Recycling Unit Thief Drone Bay AS-neutralizer No. 17b Force Rifle Force Rifle Proton Cannon Heavy Plasma Cannon Antimatter Cannon Antimatter Cannon Antimatter Cannon Proton Missile Launcher Rocket Array Long-range Missile Launcher Deploy-a-Sentry [Rating: 92] Favorites ----------- Power Reinforced Fission Core Engine Heavy Ion Engine Power Core Reinforced Fission Core Reactor Cold Fusion Reactor Propulsion Multireflex Exoskeleton Treads Improved Treads Leg Multireflex Exoskeleton Wheel Armored Huge Wheel Utility Advanced Targeting Computer Device Experimental Heat Sink Storage Huge Storage Unit Processor Advanced Targeting Computer Hackware System Shield Protection Hardened Light Armor Plating Weapon Antimatter Cannon Energy Gun Improved EM Shotgun Energy Cannon Heavy Ion Cannon Ballistic Gun 8R-AWN's Boregun Ballistic Cannon Antimatter Cannon Launcher Proton Missile Launcher Special Weapon Mining Laser Impact Weapon Heavy Mace Build | -11 -10 -10 -9 -9 -9 -8 -8 -7 -7 -7 -7 -6 -6 -6 -6 -6 -6 ------- Run | Yrd Mat Min Mat Min Exi Min Mat Fac Low Low Dat Pro Fac Low Low Zio Dee Slots Evolved 8 | . . . 2 . . . 2 2 . . . . 2 . . . . Power . | . . . . . . . . . . . . . . . . . . Propulsion . | . . . . . . . . . . . . . . . . . . Utility 8 | . . . 2 . . . 2 2 . . . . 2 . . . . Weapon . | . . . . . . . . . . . . . . . . . . Parts Attached 177 | 7 10 4 27 6 21 1 16 14 6 3 . 4 38 3 6 9 2 Power 11 | 1 1 . 2 . 3 . . . . . . . 1 . 1 2 . Engine 6 | 1 1 . 2 . . . . . . . . . 1 . . 1 . Core 4 | . . . . . 2 . . . . . . . . . 1 1 . Reactor 1 | . . . . . 1 . . . . . . . . . . . . Propulsion 26 | 2 . 2 8 . 4 . 2 1 . 1 . . 2 . 2 2 . Treads 9 | . . . 2 . 2 . 1 . . . . . . . 2 2 . Leg 12 | 2 . 2 4 . 1 . 1 . . . . . 2 . . . . Wheel 5 | . . . 2 . 1 . . 1 . 1 . . . . . . . Hover . | . . . . . . . . . . . . . . . . . . Flight . | . . . . . . . . . . . . . . . . . . Utility 84 | 2 4 1 7 2 9 . 8 5 6 1 . 3 28 3 2 2 1 Device 39 | 1 . 1 2 . 5 . 3 3 1 . . 1 19 1 2 . . Storage 6 | 1 2 . 1 . 1 . 1 . . . . . . . . . . Processor 10 | . . . . 1 . . 2 1 1 . . . 5 . . . . Hackware 3 | . 1 . . . . . . 1 . . . . 1 . . . . Protection 26 | . 1 . 4 1 3 . 2 . 4 1 . 2 3 2 . 2 1 Artifact . | . . . . . . . . . . . . . . . . . . Weapon 56 | 2 5 1 10 4 5 1 6 8 . 1 . 1 7 . 1 3 1 Energy Gun 17 | 2 . . 5 . . 1 3 4 . . . . 1 . . 1 . Energy Cannon 11 | . 2 . . 2 . . . 3 . . . . 2 . . 1 1 Ballistic Gun 4 | . . . 1 . 2 . 1 . . . . . . . . . . Ballistic Cannon 12 | . 2 . 3 2 1 . . . . 1 . . 3 . . . . Launcher 9 | . . 1 1 . 1 . 1 1 . . . 1 1 . 1 1 . Special Weapon 2 | . 1 . . . 1 . . . . . . . . . . . . Impact Weapon 1 | . . . . . . . 1 . . . . . . . . . . Slashing Weapon . | . . . . . . . . . . . . . . . . . . Piercing Weapon . | . . . . . . . . . . . . . . . . . . Special Melee Weapon . | . . . . . . . . . . . . . . . . . . Unidentified Prototypes 18 | . . 1 4 . 9 . 1 . . . . . 2 . . 1 . Corrupted Parts 1 | . . . . . . . 1 . . . . . . . . . . System Corruption 3 | . . . . . . . 3 . . . . . . . . . . Parts Lost 40 | . . . 3 . 1 . 1 3 . 1 . 1 24 . 2 . 4 Power 2 | . . . . . . . . . . . . . 1 . 1 . . Propulsion 2 | . . . 1 . . . . . . . . . 1 . . . . Utility 26 | . . . 1 . 1 . 1 2 . 1 . 1 16 . 1 . 2 Weapon 10 | . . . 1 . . . . 1 . . . . 6 . . . 2 Highest Loss Streak 4 | . . . 1 . 1 . 1 1 . 1 . 1 4 . 1 . 4 To Critical Strikes . | . . . . . . . . . . . . . . . . . . Average Backups 20 | 3 11 14 14 18 16 19 20 21 22 22 24 23 22 23 23 22 21 Power 1 | . . . 1 1 1 1 1 1 1 1 1 1 1 2 1 1 1 Propulsion 4 | 2 4 4 3 3 3 4 4 4 3 3 4 4 4 4 4 4 5 Utility 7 | . 2 4 4 5 6 9 9 8 8 8 10 9 7 7 8 7 5 Weapon 7 | . 4 6 5 8 5 5 6 7 8 9 9 9 9 10 9 9 8 Tool/Special . | . . . . . . . . . . . . . . . . . . Unused Backups 53 | . 4 . 2 4 12 . 5 5 2 . . 1 5 3 3 3 4 Power 7 | . . . . . 4 . . 1 1 . . . 1 . . . . Propulsion 13 | . . . 1 3 . . . 2 . . . . 3 . 1 2 1 Utility 21 | . 1 . . . 7 . 4 1 . . . 1 . 3 2 1 1 Weapon 12 | . 3 . 1 1 1 . 1 1 1 . . . 1 . . . 2 Tool/Special . | . . . . . . . . . . . . . . . . . . Average Slot Usage (%) 93 | . 99 100 99 99 91 88 93 91 86 91 92 91 89 92 92 91 93 Engine 3 | . 13 14 11 11 7 . . . . . . . 1 6 1 . 6 Core 4 | . . . . . 3 11 8 7 7 7 7 7 4 . 4 5 . Treads 1 | . . . 2 . 8 . . . . . . . . . . . 2 Leg 6 | . 28 28 19 . . . 6 . . . . . 4 6 5 5 4 Wheel 4 | . . . . 22 11 11 5 7 7 7 7 7 1 . . . . Device 17 | . 7 . 10 3 8 11 19 22 23 22 23 16 23 20 21 22 17 Storage 8 | . 14 14 11 11 11 11 9 7 7 7 7 7 6 6 5 6 6 Processor 13 | . . . . 6 3 . 9 15 15 15 15 15 21 26 23 20 20 Protection 14 | . 2 14 21 22 19 22 14 6 8 14 15 21 7 12 12 16 21 Energy Gun 4 | . . . 19 . 5 1 7 7 11 7 . 5 . . . . 1 Energy Cannon 2 | . 2 . . 7 . . . 6 2 4 15 7 1 5 . . 7 Ballistic Cannon 8 | . 21 27 2 14 10 20 10 . . . . . 10 6 12 9 3 Peak Build Rating 92 | 9 11 15 25 27 51 49 67 71 73 73 73 74 87 90 92 83 83 Average Rating 58 | 5 9 10 21 25 33 48 61 68 67 72 73 69 81 82 81 78 78 On Entrance 51 | . 9 9 10 23 27 49 48 59 71 69 73 73 68 82 84 81 83 Avg Prop Armor Cover (%) 7 | . . . . . 7 . . . . . . . . . . . . Naked Turns . | . . . . . . . . . . . . . . . . . . Heaviest Build 149 | 14 36 36 70 71 87 83 125 137 132 133 133 133 149 132 133 134 126 Greatest Support 60 | 20 20 20 40 32 32 28 60 28 28 28 28 28 36 36 36 48 40 Greatest Overweight (x) 41 | 1 1 1 2 2 5 2 4 4 4 4 4 4 5 3 41 29 3 Average Overweight (x) 2 | . . 1 1 2 2 2 2 4 4 4 4 4 3 3 3 2 2 Largest Inventory Capacity 25 | 8 15 15 20 20 20 20 25 25 25 25 25 25 25 25 25 25 25 Average Capacity 21 | 6 13 15 15 20 18 20 22 25 25 25 25 25 25 25 24 23 22 Most Carried 25 | 7 15 15 20 20 20 20 25 25 25 25 25 25 25 25 25 25 25 Average Carried 21 | 3 11 14 14 19 16 20 21 24 24 24 25 24 23 24 24 22 21 Final Capacity 25 | 8 15 15 20 20 20 20 25 25 25 25 25 25 25 25 25 25 20 Final Carried 25 | 7 13 15 19 20 20 20 25 24 25 25 25 25 23 25 25 25 16 Class Distribution -------------------- 79% | Mutant 13% | Commander-Mutant 3% | Derelict-Mutant Dominant Class ---------------- Mutant | -10/Materials Mutant | -10/Mines Mutant | -9/Materials Mutant | -9/Mines Mutant | -9/Exiles Mutant | -8/Mines Mutant | -8/Materials Mutant | -7/Factory Mutant | -7/Lower Caves Mutant | -7/Lower Caves Mutant | -7/Data Miner Mutant | -6/Proximity Caves Mutant | -6/Factory Mutant | -6/Lower Caves Mutant | -6/Lower Caves Commander-Mutant | -6/Zion Mutant | -6/Deep Caves Resources | -11 -10 -10 -9 -9 -9 -8 -8 -7 -7 -7 -7 -6 -6 -6 -6 -6 -6 ----------- Run | Yrd Mat Min Mat Min Exi Min Mat Fac Low Low Dat Pro Fac Low Low Zio Dee Matter Collected 8739 | 270 440 219 762 150 868 191 1271 554 279 164 . 205 1817 238 502 809 . Remotely . | . . . . . . . . . . . . . . . . . . Salvage Created 12334 | 97 321 110 2430 143 217 197 1835 1075 899 365 . 663 3008 203 279 492 . Parts 637 | 6 15 16 147 7 4 13 119 53 37 20 . 26 107 9 13 45 . Haulers Intercepted 11 | . 2 . 5 . . . 3 . . . . . 1 . . . . Recyclers Shooed 6 | . . . 3 . . . . . . . . . 3 . . . . Parts Field Recycled 26 | . . . . . . . . . . . . . . 26 . . . Retrieved Matter 240 | . . . . . . . . . . . . . . 240 . . . Parts Self-Destructed 68 | . . . . . . . . . 35 11 . 16 . . 5 1 . Prevented 31 | . . . . . . . . . 12 9 . 9 . . 1 . . Parts Restored 1 | . . . . . . . 1 . . . . . . . . . . Broken 1 | . . . . . . . 1 . . . . . . . . . . Kills | -11 -10 -10 -9 -9 -9 -8 -8 -7 -7 -7 -7 -6 -6 -6 -6 -6 -6 ------- Run | Yrd Mat Min Mat Min Exi Min Mat Fac Low Low Dat Pro Fac Low Low Zio Dee Combat Hostiles Destroyed 252 | . 6 10 44 3 5 10 39 19 19 11 . 12 58 4 8 4 . Guns 71 | . . . 31 . . . 7 8 8 6 . 4 2 4 1 . . Cannons 117 | . 6 6 4 1 3 10 26 5 2 . . 4 41 . 5 4 . AOE 47 | . . 4 9 2 1 . 4 3 7 3 . 2 10 . 2 . . Classes Destroyed 26 | 2 3 1 6 . 3 . 2 1 1 . . 2 1 . 2 2 . Worker 7 | . . . 1 . . . 3 1 . . . . 2 . . . . Builder 8 | . . . 1 . . . 3 1 . . . . 3 . . . . Tunneler 3 | 1 . . . . . . . . . . . . 2 . . . . Hauler 11 | . 2 . 5 . . . 3 . . . . . 1 . . . . Recycler 10 | 1 1 . 2 . . . 1 1 . . . . 4 . . . . Minesweeper 2 | . . . . . . . . . . . . 2 . . . . . Mechanic 3 | . . . 1 . . . . . . . . . 2 . . . . Operator 2 | . . . . . . . 1 1 . . . . . . . . . Drone 2 | . . . . . . . . . . . . 2 . . . . . Turret 1 | . . . . . 1 . . . . . . . . . . . . Watcher 17 | . 2 . 5 . . . 4 2 . . . . 4 . . . . Swarmer 59 | . . 6 8 . . 7 10 4 10 7 . . 7 . . . . Saboteur 1 | . . . . . . . . . . . . . 1 . . . . Grunt 111 | . 6 4 25 3 . 3 16 5 5 3 . 4 33 . 4 . . Brawler 8 | . . . 3 . . . . . . 1 . 1 3 . . . . Duelist 10 | . . . 1 . . . 4 . 1 . . 1 3 . . . . Sentry 20 | . . . 7 . . . 8 2 1 . . 1 1 . . . . Hunter 8 | . . . . . . . 1 2 1 . . 2 1 . 1 . . Programmer 16 | . . . . . . . . 6 . . . 1 9 . . . . Explorer 1 | . . . . . . . . . . . . . . . . 1 . Zionite 33 | . . . . . 1 . . . . . . . . . . 32 . Packrat 2 | . . . . . . . . . 2 . . . . . . . . Samaritan 1 | . . . . . . . . . 1 . . . . . . . . Tinkerer 3 | . . . . . . . . . . . . . . . . 3 . Master Thief 2 | . . . . . . . . . . . . . . . 2 . . Assembled 4 | . . . . . 4 . . . . . . . . . . . . Wasp 3 | . . . . . . . . . . . . . . 3 . . . Thug 1 | . . . . . . . . . . . . . . 1 . . . Savage 1 | . . . . . . . . . . . . . . 1 . . . Mutant 4 | . . . . . . . . . . . . . . . 1 3 . Commander 1 | . . . . . . . . . 1 . . . . . . . . Best Kill Streak 12 | 1 3 3 7 3 4 4 7 5 5 4 . 5 7 2 3 12 . Combat Bots Only 5 | . 1 3 4 3 4 4 4 5 5 4 . 5 5 2 3 2 . Max Kills in Single Turn 5 | 1 1 1 3 2 1 2 2 3 2 2 . 2 5 2 2 3 . Gunslinging 1 | . . . 1 . . . . . 1 1 . . . . . . . Exploded 3 | . . 1 3 2 1 . 1 2 2 1 . 2 3 . 2 . . Melee . | . . . . . . . . . . . . . . . . . . Uniques/NPCs Destroyed 5 | . . . . . 4 . . . . . . . . . . 1 . 8R-AWN (-9/Exiles) EX-DEC (-9/Exiles) EX-BIN (-9/Exiles) EX-HEX (-9/Exiles) Imprinter (-6/Zion) Combat | -11 -10 -10 -9 -9 -9 -8 -8 -7 -7 -7 -7 -6 -6 -6 -6 -6 -6 -------- Run | Yrd Mat Min Mat Min Exi Min Mat Fac Low Low Dat Pro Fac Low Low Zio Dee Hostile Shots Fired 1116 | . 18 34 123 7 34 30 104 111 37 51 . 64 391 3 27 34 48 Missed 336 | . 9 12 35 3 8 7 37 31 10 16 . 21 116 1 9 14 7 Hits 780 | . 9 22 88 4 26 23 67 80 27 35 . 43 275 2 18 20 41 Melee 24 | . . . 3 . 2 . . . 1 . . 4 6 . 7 1 . Projectile 756 | . 9 22 85 4 24 23 67 80 26 35 . 39 269 2 11 19 41 AOE 1 | . . . . . . . . . . . . . 1 . . . . Critical Strikes 30 | . . . 6 . 8 . 2 2 . . . 2 7 . . 3 . Part Disruptions 2 | . . . . . . . . 1 . . . . 1 . . . . Damage Taken 11701 | . 106 214 1228 105 452 267 921 883 447 376 . 420 4230 35 217 231 1569 Core 1419 | . 11 50 139 . . . 101 96 108 14 . 38 469 . 20 34 339 Absorbed by Shields 450 | . . . . . . . . 130 . . . . 279 . . 41 . Redirected to Shielding 125 | . . . . . . . . . . . . . . . . . 125 Ignored by Resistances 688 | . . . . . . . . . . . . 17 397 . 22 . 252 Regen/Repaired (Parts) 1542 | . 30 . 245 . . . 272 240 . . . . 581 19 16 12 127 Core Remaining (%) 76 | 100 . 75 . . . 65 81 . . . . 63 . . . . . Volleys Fired 1265 | 2 42 25 109 7 146 33 112 86 114 89 . 96 191 13 29 153 18 Largest 2 | 2 2 2 2 2 2 2 2 2 2 2 . 2 2 2 2 2 1 Hottest 155 | 90 120 100 90 74 90 92 100 150 145 141 . 145 155 118 72 123 90 Shots Fired 2027 | 4 74 43 197 12 280 66 215 134 137 97 . 117 345 20 54 214 18 Gun 642 | 4 . . 134 . 261 7 61 61 43 14 . 26 13 10 8 . . Cannon 1306 | . 64 32 58 10 17 59 152 70 88 79 . 84 321 10 41 204 17 Launcher 62 | . . 5 5 2 1 . 2 3 6 4 . 7 11 . 5 10 1 Special 17 | . 10 6 . . 1 . . . . . . . . . . . . Kinetic 751 | . 60 32 58 10 39 59 152 . . . . . 210 12 49 70 . Thermal 645 | 4 14 6 . . . . . 94 100 87 . 98 87 8 . 134 13 Explosive 21 | . . 5 . . 1 . . . 1 1 . . 3 . . 10 . Electromagnetic 609 | . . . 139 2 239 7 63 40 36 9 . 19 45 . 5 . 5 Robot Hit Streak 38 | 3 9 5 31 10 38 8 17 34 25 7 . 17 29 7 5 14 2 Robot Miss Streak 6 | . 3 3 6 5 3 3 6 3 2 2 . 3 4 1 3 3 1 Penetration Max 1 | . . . . . 1 . . . . . . . . . . . . Secondary Targets 13 | . . . 3 . . . 4 1 2 3 . . . . . . . Max Gunslinging Chain 1 | . . . 1 . . . 1 1 1 1 . . . . . . . Shots Hit Robots 1101 | 3 37 21 137 4 250 24 120 73 48 17 . 37 214 8 27 78 3 Core Hits 595 | 3 10 12 103 5 59 11 83 34 33 16 . 31 130 7 11 47 . Critical Kills 6 | . . . . . . . . . . . . . 2 3 1 . . Critical Parts Destroyed 6 | . . . . . 1 . . . . . . . . 2 3 . . Critical Strikes 38 | 1 2 . . . 2 1 5 1 . . . . 12 5 6 3 . Burn 2 | 1 . . . . . . . 1 . . . . . . . . . Meltdown 2 | . . . . . . . . . . . . . 2 . . . . Destroy 11 | . . . . . 2 . . . . . . . . 5 4 . . Blast 23 | . 2 . . . . 1 5 . . . . . 10 . 2 3 . Melee Attacks 3 | . . . . . . . 3 . . . . . . . . . . Impact 3 | . . . . . . . 3 . . . . . . . . . . Slashing . | . . . . . . . . . . . . . . . . . . Piercing . | . . . . . . . . . . . . . . . . . . Sneak Attacks . | . . . . . . . . . . . . . . . . . . Combat Hostiles . | . . . . . . . . . . . . . . . . . . Follow-up Attacks . | . . . . . . . . . . . . . . . . . . Damage Inflicted 30531 | 36 644 635 3305 165 758 640 3576 2158 1839 656 . 1213 9720 246 1298 3539 103 Guns 6704 | 36 . . 1855 . 429 63 1048 1148 767 226 . 616 282 110 124 . . Cannons 16453 | . 644 338 435 97 243 577 2045 762 288 82 . 353 7274 136 906 2201 72 Explosions 7374 | . . 297 1015 68 86 . 483 248 784 348 . 244 2164 . 268 1338 31 Melee . | . . . . . . . . . . . . . . . . . . Ramming . | . . . . . . . . . . . . . . . . . . Kinetic 11744 | . 609 338 435 97 349 577 2045 . . . . . 4814 185 1030 1265 . Thermal 7410 | 36 35 . 611 . . . 301 1349 787 192 . 825 2150 61 127 936 . Explosive 3085 | . . 297 . . 86 . . . 174 131 . . 1059 . . 1338 . Electromagnetic 8292 | . . . 2259 68 323 63 1230 809 878 333 . 388 1697 . 141 . 103 Impact . | . . . . . . . . . . . . . . . . . . Slashing . | . . . . . . . . . . . . . . . . . . Piercing . | . . . . . . . . . . . . . . . . . . Highest Corruption 8 | . . . . . 2 . 3 2 . . . 1 8 . 8 8 . Average Corruption 2 | . . . . . 1 . 3 1 . . . 1 1 . 8 8 . Corruption Purged 6 | . . . . . 2 . . 2 . . . . 2 . . . . Corruption Blocked . | . . . . . . . . . . . . . . . . . . Effects 118 | . . . . . 24 . 5 18 . . . 10 19 . 39 3 . Message Errors 39 | . . . . . 5 . 2 6 . . . 5 4 . 17 . . Matter Fused 29 | . . . . . 7 . 2 4 . . . 2 6 . 7 1 . Heat Flow Errors 8 | . . . . . 3 . . 1 . . . . 2 . 2 . . Energy Discharges 10 | . . . . . 3 . . 3 . . . 1 . . 1 2 . Parts Fused 3 | . . . . . . . . 1 . . . . . . 2 . . Data Loss (minor) 13 | . . . . . 2 . 1 1 . . . 1 3 . 5 . . Data Loss (major) 6 | . . . . . 2 . . . . . . . 1 . 3 . . Misfires 7 | . . . . . 2 . . 2 . . . 1 1 . 1 . . Alerts 2 | . . . . . . . . . . . . . 1 . 1 . . Weapon Failures 1 | . . . . . . . . . . . . . 1 . . . . Overload Shots . | . . . . . . . . . . . . . . . . . . Overflow Damage 670 | . 15 21 28 . . 12 26 75 98 . . . 335 . 37 23 . Projectiles 446 | . 15 1 . . . 12 26 75 . . . . 257 . 37 23 . Explosions 224 | . . 20 28 . . . . . 98 . . . 78 . . . . Melee . | . . . . . . . . . . . . . . . . . . Knockbacks 107 | . 2 6 5 2 2 4 20 . . . . . 48 . 11 7 . Impact . | . . . . . . . . . . . . . . . . . . Kinetic 96 | . 2 6 4 2 2 4 17 . . . . . 41 . 11 7 . Secondary 11 | . . . 1 . . . 3 . . . . . 7 . . . . Self-Inflicted Damage 428 | . . . 131 . . . . 38 . . . 2 256 . 1 . . Shots 20 | . . . 4 . . . . 1 . . . 1 13 . 1 . . Rammed . | . . . . . . . . . . . . . . . . . . Targets Rammed . | . . . . . . . . . . . . . . . . . . Kicked . | . . . . . . . . . . . . . . . . . . Crushed . | . . . . . . . . . . . . . . . . . . Highest Temperature 372 | 30 126 172 159 177 324 224 107 223 187 164 . 276 372 102 299 126 168 Average Temperature 60 | 17 30 47 40 77 92 105 28 52 43 65 . 89 85 38 107 24 57 Received Heat Transfer 2991 | . 60 36 429 36 . 99 324 114 45 9 . 87 1369 . 60 77 246 Effects 4 | . . . . . . 1 . 2 . . . . . . 1 . . Energy Bleed 1 | . . . . . . . . . . . . . . . 1 . . Interference 3 | . . . . . . 1 . 2 . . . . . . . . . Siege Activations . | . . . . . . . . . . . . . . . . . . Martial Activations . | . . . . . . . . . . . . . . . . . . Shielding Activations . | . . . . . . . . . . . . . . . . . . Robots Disrupted . | . . . . . . . . . . . . . . . . . . Combat Hostiles . | . . . . . . . . . . . . . . . . . . Robots Corrupted 19 | . . . . . 2 . 2 4 2 2 . 3 4 . . . . Combat Hostiles 16 | . . . . . 1 . 2 3 2 2 . 2 4 . . . . Parts Fried 48 | . . . 9 . . . 6 11 10 2 . 3 7 . . . . Impact Corruptions 2 | . . . . . . . 1 . . . . . 1 . . . . Robots Melted 2 | . . . . . . . . . . . . . 2 . . . . Combat Hostiles 1 | . . . . . . . . . . . . . 1 . . . . Parts Melted 12 | . . . . . . . . 3 2 1 . . 6 . . . . Heat Transferred 10976 | 173 74 . 800 . . . 365 1767 1195 398 . 1620 2910 74 150 1450 . Parts Sabotaged . | . . . . . . . . . . . . . . . . . . Parts Stolen 5 | . . . . . . . . . . . . . . . 5 . . Parts Stripped . | . . . . . . . . . . . . . . . . . . Power Chain Reactions 23 | . . . 9 . . . 4 2 4 . . 1 2 . 1 . . Alert | -11 -10 -10 -9 -9 -9 -8 -8 -7 -7 -7 -7 -6 -6 -6 -6 -6 -6 ------- Run | Yrd Mat Min Mat Min Exi Min Mat Fac Low Low Dat Pro Fac Low Low Zio Dee Maximum Alert Level 3 | . . . 3 1 . . 3 2 . . . . 3 . . . . Low Security (%) 51 | 100 100 100 42 93 . 100 21 60 . . . . 13 . . . . Level 1 21 | . . . 9 6 . . 39 38 . . . . 32 . . . . Level 2 19 | . . . 41 . . . 34 . . . . . 24 . . . . Level 3 7 | . . . 5 . . . 4 . . . . . 30 . . . . Level 4 . | . . . . . . . . . . . . . . . . . . Level 5 . | . . . . . . . . . . . . . . . . . . High Security . | . . . . . . . . . . . . . . . . . . Max Security . | . . . . . . . . . . . . . . . . . . Peak Influence 1098 | 5 64 81 774 249 . 97 733 405 . . . . 1098 . . . . Initial 333 | . . 14 . 249 . . . 333 . . . . . . . . . Average 254 | 1 17 13 326 50 . 19 350 162 . . . . 489 . . . . Influence Increases 7792 | 10 358 304 1584 87 . 255 1327 795 445 265 . 255 1972 . 135 . . Destroy 0b10 Robot/C 4700 | . 120 200 880 60 . 200 780 400 380 220 . 200 1160 . 100 . . Destroy 0b10 Robot/NC 325 | 10 25 . 75 . . . 75 30 . . . 20 90 . . . . Destroy Leader 1016 | . 58 40 200 10 . 30 194 144 20 30 . 20 250 . 20 . . Successful Hack 314 | . 40 . 28 12 . . 54 69 . . . . 111 . . . . Select Force Hacks 150 | . 30 . 30 . . . 90 . . . . . . . . . . Disable Machine 315 | . . . 45 . . . 60 45 . . . . 165 . . . . Destroy Structure 312 | . 10 34 56 5 . 10 44 32 . . . . 121 . . . . Partial Spotted 15 | . 15 . . . . . . . . . . . . . . . . Lose Combat Pursuer 645 | . 60 30 270 . . 15 30 75 45 15 . 15 75 . 15 . . Influence Decreases 7792 | 10 320 342 945 726 . 255 594 1124 735 379 . 255 874 1098 135 . . Entered New Map 1395 | . . 24 . 390 . . . 400 151 23 . . . 407 . . . Time Decay 5737 | 10 320 318 615 336 . 255 584 654 584 346 . 255 634 691 135 . . Lost Part 320 | . . . 30 . . . 10 30 . 10 . . 240 . . . . Lost Ally 40 | . . . . . . . . 40 . . . . . . . . . Purge Threat 300 | . . . 300 . . . . . . . . . . . . . . Squads Dispatched 53 | . 7 . 8 1 . . 8 11 . . . . 18 . . . . Investigation 21 | . 5 . 3 1 . . 5 3 . . . . 4 . . . . Extermination 14 | . . . . . . . . 6 . . . . 8 . . . . Reinforcement 8 | . 2 . 1 . . . 1 2 . . . . 2 . . . . Assault 8 | . . . 4 . . . 1 . . . . . 3 . . . . Garrison 2 | . . . . . . . 1 . . . . . 1 . . . . Intercept . | . . . . . . . . . . . . . . . . . . Searches Triggered . | . . . . . . . . . . . . . . . . . . Data Miner Redirects 2 | . . . . . . . . . . . . . 2 . . . . Construction Impeded 2 | . . . 1 . . . 1 . . . . . . . . . . Haulers Reinforced 2 | . . . . . . . . 1 . . . . 1 . . . . Active Scanning Responses . | . . . . . . . . . . . . . . . . . . Cargo Convoy Interrupts . | . . . . . . . . . . . . . . . . . . Stealth | -11 -10 -10 -9 -9 -9 -8 -8 -7 -7 -7 -7 -6 -6 -6 -6 -6 -6 --------- Run | Yrd Mat Min Mat Min Exi Min Mat Fac Low Low Dat Pro Fac Low Low Zio Dee Distress Signals 8 | . 4 . . . . . 1 1 . . . . 2 . . . . Communications Jammed . | . . . . . . . . . . . . . . . . . . Distress Signals . | . . . . . . . . . . . . . . . . . . Times Spotted 392 | . 16 11 74 1 16 11 55 29 21 11 . 13 79 2 11 40 2 Peak Tracking Total 10 | . 3 3 5 3 10 4 5 4 5 4 . 5 5 2 5 5 1 Tactical Retreats 34 | . 4 1 10 . 2 1 1 5 1 1 . 1 4 1 1 . 1 Traps | -11 -10 -10 -9 -9 -9 -8 -8 -7 -7 -7 -7 -6 -6 -6 -6 -6 -6 ------- Run | Yrd Mat Min Mat Min Exi Min Mat Fac Low Low Dat Pro Fac Low Low Zio Dee Traps Triggered 11 | . 2 . 1 1 . . . 2 . . . . 5 . . . . Indirectly 4 | . . . 1 . . . . 2 . . . . 1 . . . . Trap Hack Attempts . | . . . . . . . . . . . . . . . . . . Triggered . | . . . . . . . . . . . . . . . . . . Disarmed . | . . . . . . . . . . . . . . . . . . Reprogrammed . | . . . . . . . . . . . . . . . . . . Reused . | . . . . . . . . . . . . . . . . . . Traps Extracted 1 | . . . . . . . . . . . . . . . . . 1 Installed 3 | . . . . . . . . . . . . . . . . . 3 Triggered . | . . . . . . . . . . . . . . . . . . Most Traps Carried 4 | . . . . . . . . . . . . 4 4 4 4 4 4 Machines | -11 -10 -10 -9 -9 -9 -8 -8 -7 -7 -7 -7 -6 -6 -6 -6 -6 -6 ---------- Run | Yrd Mat Min Mat Min Exi Min Mat Fac Low Low Dat Pro Fac Low Low Zio Dee Machines Disabled 35 | . . . 3 . 7 . 4 3 4 . . . 11 . . 2 1 Max in Single Turn 3 | . . . 3 . 1 . 1 2 1 . . . 2 . . 1 1 Garrison Access 1 | . . . . . . . . . . . . . 1 . . . . Machines Repaired . | . . . . . . . . . . . . . . . . . . Machines Dismantled . | . . . . . . . . . . . . . . . . . . Machines Sabotaged . | . . . . . . . . . . . . . . . . . . Overloaded Fab Kills . | . . . . . . . . . . . . . . . . . . Hacking | -11 -10 -10 -9 -9 -9 -8 -8 -7 -7 -7 -7 -6 -6 -6 -6 -6 -6 --------- Run | Yrd Mat Min Mat Min Exi Min Mat Fac Low Low Dat Pro Fac Low Low Zio Dee Machines Accessed 89 | . 9 1 14 3 2 . 14 16 3 . 4 . 20 3 . . . Terminals 45 | . 6 . 9 1 . . 8 9 1 . . . 10 1 . . . Fabricators 6 | . . . . . . . . 2 . . . . 4 . . . . Repair Stations 9 | . 1 . 2 . . . 2 2 . . . . 2 . . . . Recycling Units 8 | . 2 . 1 . . . 2 1 . . . . 2 . . . . Scanalyzers 7 | . . . 2 . . . 2 2 . . . . 1 . . . . Garrison Access 1 | . . . . . . . . . . . . . 1 . . . . Total Hacks 309 | . 33 1 52 6 2 . 45 82 10 . 29 . 46 3 . . . Successful 202 | . 20 1 38 4 2 . 30 41 10 . 29 . 24 3 . . . Failed 105 | . 13 . 13 2 . . 15 40 . . . . 22 . . . . Catastrophic 11 | . . . . . . . 2 4 . . . . 5 . . . . Database Lockouts 2 | . . . 1 . . . . 1 . . . . . . . . . Manual 161 | . 26 . 32 4 1 . 24 48 . . . . 22 . . 4 . Terminals 161 | . 22 . 34 4 . . 25 47 4 . . . 24 1 . . . Fabricators 19 | . . . . . . . . 11 . . . . 8 . . . . Repair Stations 29 | . 3 . 5 . . . 7 6 . . . . 8 . . . . Recycling Units 22 | . 8 . 3 . . . 6 2 . . . . 3 . . . . Scanalyzers 35 | . . . 10 . . . 7 16 . . . . 2 . . . . Garrison Access 1 | . . . . . . . . . . . . . 1 . . . . Terminal Hacks 70 | . 4 1 6 4 2 . 3 5 10 . 29 . 3 3 . . . Record 22 | . . . . . 1 . . . 9 . 11 . . 1 . . . Part Schematic 8 | . . . . . . . . . . . 8 . . . . . . Robot Schematic 7 | . . . . . . . . . . . 7 . . . . . . Robot Analysis 11 | . 3 . 1 2 . . 1 1 . . . . 3 . . . . Prototype ID Bank 6 | . . . 1 . . . 1 1 . . 3 . . . . . . Open Door 6 | . . 1 . 2 . . . . 1 . . . . 2 . . . Branch Access Points 2 | . . . 1 . . . . 1 . . . . . . . . . Terminal Index 1 | . . . . . . . . 1 . . . . . . . . . Fabricator Index 1 | . . . . . . . . 1 . . . . . . . . . Unreport Threat 2 | . . . 2 . . . . . . . . . . . . . . Locate Traps 2 | . 1 . . . . . 1 . . . . . . . . . . Zone Layout 1 | . . . 1 . . . . . . . . . . . . . . Proto ID Catalog 1 | . . . . . 1 . . . . . . . . . . . . Fabricator Hacks 6 | . . . . . . . . 3 . . . . 3 . . . . Load Schematic 2 | . . . . . . . . 1 . . . . 1 . . . . Build 4 | . . . . . . . . 2 . . . . 2 . . . . Repair Station Hacks 22 | . 2 . 4 . . . 6 6 . . . . 4 . . . . Scan Component 11 | . 1 . 2 . . . 3 3 . . . . 2 . . . . Repair 11 | . 1 . 2 . . . 3 3 . . . . 2 . . . . Recycling Unit Hacks 5 | . 2 . 1 . . . 1 1 . . . . . . . . . Retrieve Components 5 | . 2 . 1 . . . 1 1 . . . . . . . . . Scanalyzer 24 | . . . 8 . . . 5 9 . . . . 2 . . . . Insert Component 11 | . . . 3 . . . 3 4 . . . . 1 . . . . Analyze 9 | . . . 3 . . . 2 3 . . . . 1 . . . . Retrieve Study 4 | . . . 2 . . . . 2 . . . . . . . . . Garrison Access Hacks 1 | . . . . . . . . . . . . . 1 . . . . Seal Access 1 | . . . . . . . . . . . . . 1 . . . . Unauthorized Hacks 74 | . 12 . 19 . . . 15 17 . . . . 11 . . . . Terminals 58 | . 7 . 17 . . . 12 12 . . . . 10 . . . . Track 9 | . . . 4 . . . 2 2 . . . . 1 . . . . Assimilate 1 | . . . . . . . . . . . . . 1 . . . . Botnet 17 | . 1 . 5 . . . 4 4 . . . . 3 . . . . Operators 3 | . 1 . 1 . . . 1 . . . . . . . . . . Skim 28 | . 5 . 7 . . . 5 6 . . . . 5 . . . . Fabricators 5 | . . . . . . . . 5 . . . . . . . . . Report 1 | . . . . . . . . 1 . . . . . . . . . Prioritize 1 | . . . . . . . . 1 . . . . . . . . . Liberate 2 | . . . . . . . . 2 . . . . . . . . . Haulers 1 | . . . . . . . . 1 . . . . . . . . . Repair Stations 2 | . . . 1 . . . . . . . . . 1 . . . . Patch 2 | . . . 1 . . . . . . . . . 1 . . . . Recycling Units 8 | . 5 . 1 . . . 2 . . . . . . . . . . Reject 2 | . 2 . . . . . . . . . . . . . . . . Mask 2 | . 2 . . . . . . . . . . . . . . . . Tunnel 4 | . 1 . 1 . . . 2 . . . . . . . . . . Scanalyzers 1 | . . . . . . . 1 . . . . . . . . . . Extract 1 | . . . . . . . 1 . . . . . . . . . . Garrison Access . | . . . . . . . . . . . . . . . . . . Data Cores Recovered 2 | . . . . . . . 1 1 . . . . . . . . . Used 1 | . . . . . . . . 1 . . . . . . . . . Hacking Detections 68 | . 9 . 11 1 . . 14 14 . . . . 19 . . . . Full Trace Events 14 | . 5 . . . . . 3 3 . . . . 3 . . . . Feedback Events . | . . . . . . . . . . . . . . . . . . Feedback Blocked . | . . . . . . . . . . . . . . . . . . Robot Schematics Acquired 10 | . . . . . . . . . . . 7 . . . . 3 . Robots Built 4 | . . . . . . . . 4 . . . . . . . . . Authchips . | . . . . . . . . . . . . . . . . . . Time 81 | . . . . . . . . 81 . . . . . . . . . Total Robot Build Rating 4 | . . . . . . . . 4 . . . . . . . . . Part Schematics Acquired 51 | . . . 3 . . . 22 2 . . 8 . 1 . . 15 . Parts Built 4 | . . . . . . . . 1 . . . . 3 . . . . Authchips . | . . . . . . . . . . . . . . . . . . Time 185 | . . . . . . . . 67 . . . . 118 . . . . Total Part Build Rating 25 | . . . . . . . . 4 . . . . 21 . . . . Part Studies Acquired 3 | . . . 1 . . . . 2 . . . . . . . . . Parts Repaired 10 | . 1 . 2 . . . 3 2 . . . . 2 . . . . Time 526 | . 32 . 83 . . . 94 113 . . . . 204 . . . . Parts Recycled . | . . . . . . . . . . . . . . . . . . Recycled Matter . | . . . . . . . . . . . . . . . . . . Retrieved Matter . | . . . . . . . . . . . . . . . . . . Retrieved Components 26 | . 13 . 10 . . . 1 2 . . . . . . . . . Parts Scanalyzed 9 | . . . 3 . . . 3 2 . . . . 1 . . . . Part Schematics Acquired 8 | . . . 3 . . . 2 2 . . . . 1 . . . . Parts Damaged 1 | . . . . . . . . 1 . . . . . . . . . Bothacking | -11 -10 -10 -9 -9 -9 -8 -8 -7 -7 -7 -7 -6 -6 -6 -6 -6 -6 ------------ Run | Yrd Mat Min Mat Min Exi Min Mat Fac Low Low Dat Pro Fac Low Low Zio Dee Used RIF Installer . | . . . . . . . . . . . . . . . . . . Robots Hacked . | . . . . . . . . . . . . . . . . . . Non-combat . | . . . . . . . . . . . . . . . . . . Combat . | . . . . . . . . . . . . . . . . . . Robot Hacks Applied . | . . . . . . . . . . . . . . . . . . Relay Couplers Released 3 | . . . . . . . . . . . . . 3 . . . . Programmers 3 | . . . . . . . . . . . . . 3 . . . . Fabnet Peak Effective % . | . . . . . . . . . . . . . . . . . . Robots Rewired 5 | . . . . . . . . 1 . . . . . . 4 . . Allies Hacked . | . . . . . . . . . . . . . . . . . . Hacks Repelled . | . . . . . . . . . . . . . . . . . . Allies | -11 -10 -10 -9 -9 -9 -8 -8 -7 -7 -7 -7 -6 -6 -6 -6 -6 -6 -------- Run | Yrd Mat Min Mat Min Exi Min Mat Fac Low Low Dat Pro Fac Low Low Zio Dee Total Allies 19 | . . . . . 1 . . 14 . . . . . . 4 . . Largest Group 4 | . . . . . 1 . . 4 . . . . . . 4 4 . Highest-Rated Group 117 | . . . . . 36 . . 90 . . . . . . 117 117 . Highest-Rated Ally 40 | . . . . . 36 . . 40 . . . . . . 30 30 . Total Orders 23 | . . . . . 5 . . 2 . . . . . 2 . 14 . STAY 10 | . . . . . 1 . . 2 . . . . . . . 7 . FOLLOW 6 | . . . . . . . . . . . . . . . . 6 . EXPLORE 1 | . . . . . . . . . . . . . . 1 . . . RETURN 6 | . . . . . 4 . . . . . . . . 1 . 1 . Ally Attacks 257 | . . . . . 137 . . 5 . . . . . . 40 75 . Total Damage 3023 | . . . . . 1385 . . 175 . . . . . . 439 1024 . Kills 23 | . . . . . 10 . . 1 . . . . . . 1 11 . Allies Corrupted 1 | . . . . . 1 . . . . . . . . . . . . Allies Melted 1 | . . . . . . . . . 1 . . . . . . . . Field Lobotomies 1 | . . . . . 1 . . . . . . . . . . . . Intel | -11 -10 -10 -9 -9 -9 -8 -8 -7 -7 -7 -7 -6 -6 -6 -6 -6 -6 ------- Run | Yrd Mat Min Mat Min Exi Min Mat Fac Low Low Dat Pro Fac Low Low Zio Dee Active Infowar (turns) 27360 | 12 1504 . . . . . 2807 2866 2850 2250 129 622 2737 2996 3307 3234 2046 Optics 1559 | . . . . . . . . . . . . . 1559 . . . . Sensors 23920 | . . . . . . . 1545 2866 2850 2250 129 622 2075 2996 3307 3234 2046 Terrain 1592 | 12 1504 . . . . . . . . . . . 76 . . . . Traps 1262 | . . . . . . . 1262 . . . . . . . . . . Cloaking 1118 | . . . . . . . . . . . . . 1118 . . . . Robot Analysis Total 11 | . 3 . 1 2 . . 1 1 . . . . 3 . . . . Derelict Logs Recovered 14 | . . 2 . 2 . . . . 2 2 . 1 . 2 2 1 . Drone Launches 23 | . . . . . 20 . . . . . . . . 1 . 2 . Drone Recoveries 22 | . . . . . 19 . . . . . . . . 1 . 2 . Exploration | -11 -10 -10 -9 -9 -9 -8 -8 -7 -7 -7 -7 -6 -6 -6 -6 -6 -6 ------------- Run | Yrd Mat Min Mat Min Exi Min Mat Fac Low Low Dat Pro Fac Low Low Zio Dee Turns Passed 52719 | 80 2749 1903 4532 1471 4281 936 5092 3306 2884 2275 129 2648 4832 2996 3307 7239 2059 Spaces Moved 22407 | 51 1204 794 1578 909 2447 582 2533 1610 1746 1195 85 1539 1511 840 964 2244 575 Core 10 | 8 . . . . . . . . . . . . . . 1 1 . Treads 199 | . . . 169 . . . . . . . . . . . . 2 28 Legs 9689 | 43 1204 794 1321 . . . 787 . . . . . 949 840 963 2241 547 Wheels 12509 | . . . 88 909 2447 582 1746 1610 1746 1195 85 1539 562 . . . . Hover . | . . . . . . . . . . . . . . . . . . Flight . | . . . . . . . . . . . . . . . . . . Fastest Speed 50 | 50 120 190 130 130 130 130 130 150 150 150 150 150 150 320 320 245 180 Average Speed 195 | 111 177 190 210 130 144 130 165 151 150 150 150 150 256 320 321 293 288 Slowest Speed 2100 | 190 190 190 320 130 175 130 260 160 150 150 150 150 320 320 2100 1500 320 Overloaded Moves . | . . . . . . . . . . . . . . . . . . Propulsion Burnouts . | . . . . . . . . . . . . . . . . . . Robots Hopped 4 | . . . . . 4 . . . . . . . . . . . . Potential Cave-ins 8 | . . . . . . . . . . . . 8 . . . . . Cave-ins Triggered . | . . . . . . . . . . . . . . . . . . Exploration Rate (%) 79 | 4 99 96 91 99 91 89 87 33 99 93 70 96 38 99 93 88 71 Regions Visited 17 Branch Regions 12 Pre-discovered Areas 16 | . 1 1 3 . 1 . 3 . 1 . 1 1 1 . 1 2 . Known Exits Taken 11 | . . . 1 . . . 1 1 1 1 1 1 1 1 1 1 . Unknown Exits Taken 6 | 1 1 1 . 1 1 1 . . . . . . . . . . . Scrap Searched 31 | . . 2 . 2 . . . . 3 4 . 5 . 9 2 4 . Spaces Dug 164 | . 9 6 12 . . 13 3 37 14 11 . 27 20 4 5 . 3 Terrain Destroyed 583 | . 9 59 55 5 17 17 37 47 61 64 . 35 125 5 23 21 3 Melee 3 | . . . . . . . 3 . . . . . . . . . . Projectile 351 | . 9 6 12 5 9 17 30 41 21 49 . 29 86 5 17 12 3 AOE 226 | . . 53 43 . 7 . 4 6 40 15 . 6 39 . 4 9 . Terrain Rammed . | . . . . . . . . . . . . . . . . . . Walls Destroyed . | . . . . . . . . . . . . . . . . . . Machines Disabled . | . . . . . . . . . . . . . . . . . . Actions | -11 -10 -10 -9 -9 -9 -8 -8 -7 -7 -7 -7 -6 -6 -6 -6 -6 -6 --------- Run | Yrd Mat Min Mat Min Exi Min Mat Fac Low Low Dat Pro Fac Low Low Zio Dee Total 29355 | 66 1720 1131 2588 1191 2934 697 3280 2361 1928 1582 86 1771 2139 1129 1115 2678 959 Wait 4720 | . 426 299 812 242 165 80 556 583 28 278 . 110 302 254 52 193 340 Move 22382 | 50 1203 793 1577 908 2438 581 2532 1609 1745 1194 84 1538 1510 839 963 2243 575 Hop 4 | . . . . . 4 . . . . . . . . . . . . Pick Up 266 | 7 16 2 25 12 51 . 22 13 9 4 . 6 35 7 31 25 1 Fast Attach 69 | 7 4 . 6 . 11 . 6 6 2 1 . 3 13 1 3 5 1 Attach 110 | . . . 9 4 23 . 10 7 2 2 . 2 27 2 5 10 7 Detach 23 | . 1 . 1 . 11 . . 2 2 . . . 3 . . 2 1 Swap 250 | . 16 10 28 5 19 3 20 40 19 11 2 9 35 7 7 16 3 Drop 234 | . 12 2 21 13 66 . 19 11 7 3 . 7 18 6 8 31 10 Fire 1265 | 2 42 25 109 7 146 33 112 86 114 89 . 96 191 13 29 153 18 Melee 3 | . . . . . . . 3 . . . . . . . . . . Ram . | . . . . . . . . . . . . . . . . . . Kick . | . . . . . . . . . . . . . . . . . . Crush . | . . . . . . . . . . . . . . . . . . Escape Stasis 5 | . . . . . . . . . . . . . 5 . . . . Rewire 21 | . . . . . . . . 4 . . . . . . 17 . . Trap 3 | . . . . . . . . . . . . . . . . . 3 Miscellaneous . | . . . . . . . . . . . . . . . . . . Route ------- -11/Scrapyard -10/Materials (discovered 5 exits: *Mat x3 / *Min / *Sub) -10/Mines (discovered 3 exits: *Mat x2 / Sub) -9/Materials (discovered 6 exits: *Mat x3 / *Min x2 / *Sto) -9/Mines (discovered 3 exits: *Mat x2 / *Exi) -9/Exiles -8/Mines -8/Materials (discovered 3 exits: *Fac x3) -7/Factory (discovered 4 exits: *Fac x2 / *Low x2) -7/Lower Caves -7/Lower Caves (discovered 2 exits: *Fac / *Dat) -7/Data Miner -6/Proximity Caves -6/Factory (discovered 6 exits: *Fac x4 / *Low x2) -6/Lower Caves -6/Lower Caves (discovered 2 exits: *Fac / *Zio) -6/Zion (discovered 2 exits: *Dee / [*Pro]) -6/Deep Caves (discovered 1 exit: *Pro) History --------- Turn | Location | Event 8 | -11/Scrapyard | Discovered new exit (range 15) 81 | -11/Scrapyard | Entered Materials 82 | -10/Materials | Met a group of wandering Federalists 102 | -10/Materials | Discovered new exit (range 12) 177 | -10/Materials | Discovered new exit (range 9) 316 | -10/Materials | Build established: Mutant 339 | -10/Materials | Discovered new exit (range 14) 767 | -10/Materials | Discovered new exit (range 8) 927 | -10/Materials | Discovered new exit (range 7) 1920 | -10/Materials | Learned Storage terminal intel 1980 | -10/Materials | Learned Storage emergency access door positions 2390 | -10/Materials | Repaired Particle Gun 2830 | -10/Materials | Entered Mines 2843 | -10/Mines | Found the Drone Emporium 2851 | -10/Mines | Found Prototype Device 2852 | -10/Mines | Identified Thief Drone Bay 3200 | -10/Mines | Learned location of Zion (-6) 3231 | -10/Mines | Discovered new exit (range 15) 3657 | -10/Mines | Identified exit to Subcaves 3888 | -10/Mines | Discovered new exit (range 8) 4733 | -10/Mines | Entered Materials 4733 | -9/Materials | Evolved 2 slots: Utility x2 5671 | -9/Materials | Discovered new exit (range 11) 6046 | -9/Materials | Discovered new exit (range 16) 6297 | -9/Materials | Repaired Hrd. Light Armor Plating 6987 | -9/Materials | Discovered new exit (range 11) 7111 | -9/Materials | Discovered new exit (range 7) 7464 | -9/Materials | Central database locked down 7518 | -9/Materials | Learned location of Recycling (-9) 7564 | -9/Materials | Loaded intel: 18 trap records 7629 | -9/Materials | Learned location of 1 exit from Storage 7649 | -9/Materials | Learned 2 Materials zone layouts 7662 | -9/Materials | Learned Storage stockpile data 7684 | -9/Materials | Learned 2 Materials zone layouts 7793 | -9/Materials | Discovered new exit (range 7) 7933 | -9/Materials | First assault squad dispatched 8129 | -9/Materials | Discovered new exit (range 13) 8442 | -9/Materials | Repaired Imp. EM Shotgun 8797 | -9/Materials | Identified exit to Mines 8797 | -9/Materials | Identified exit to Storage 9265 | -9/Materials | Entered Mines 9270 | -9/Mines | Met a Derelict shopkeep closing up shop 9395 | -9/Mines | Found DCF Scrap (12 items) 9403 | -9/Mines | Found a Scrap Suit stashed away for nefarious purposes 9431 | -9/Mines | Learned Materials terminal intel 9556 | -9/Mines | Discovered new exit (range 7) 9561 | -9/Mines | Met a Derelict who couldn't figure out how to use a Trap Extractor 9853 | -9/Mines | Discovered new exit (range 5) 9980 | -9/Mines | Learned 4 Materials zone layouts 10019 | -9/Mines | Received a Rocket Launcher from a helpful Derelict 10486 | -9/Mines | Deemed a non-threat by the Exiles lab entrance 10731 | -9/Mines | Discovered new exit (range 5) 10736 | -9/Mines | Entered Exiles 10768 | -9/Exiles | Met 8R-AWN 10790 | -9/Exiles | Met EX-HEX 10837 | -9/Exiles | Met EX-DEC 10905 | -9/Exiles | Discovered new exit (range 14) 11471 | -9/Exiles | Met EX-BIN 11742 | -9/Exiles | Aligned with FarCom system 11744 | -9/Exiles | Given EX-Vault access code 11777 | -9/Exiles | Opened EX-Vault 11787 | -9/Exiles | Found Field Lobotomy Kit 11794 | -9/Exiles | Found Supersonic Drone Bay 11823 | -9/Exiles | Warned to stay clear of 0b10 Research branches 12080 | -9/Exiles | Attacked by the Exiles 12228 | -9/Exiles | Found Prototype Ballistic Gun 12231 | -9/Exiles | Found Prototype Device 12232 | -9/Exiles | Identified AS-neutralizer No. 17b 12237 | -9/Exiles | Found Prototype Ballistic Gun 12238 | -9/Exiles | Identified 8R-AWN's Boregun (x2) 12666 | -9/Exiles | Assimilated DAS Turret with FLK Orb 13068 | -9/Exiles | Destroyed 8R-AWN 13073 | -9/Exiles | Found Prototype Protection 13079 | -9/Exiles | Identified 8R-AWN's Armor/EX 13473 | -9/Exiles | Allies destroyed EX-DEC 13502 | -9/Exiles | Allies destroyed EX-BIN 13520 | -9/Exiles | Allies destroyed EX-HEX 13575 | -9/Exiles | Found Prototype Device 13575 | -9/Exiles | Identified System Purifier 13677 | -9/Exiles | Found Deploy-a-Sentry 15017 | -9/Exiles | Left Exiles lab with Deploy-a-Sentry 15017 | -9/Exiles | Entered Mines 15375 | -8/Mines | Discovered new exit (range 12) 15953 | -8/Mines | Entered Materials 15953 | -8/Materials | Evolved 2 slots: Utility x2 15954 | -8/Materials | Identified exit to Factory 15955 | -8/Materials | Loaded intel: 12 terminal locations 16328 | -8/Materials | Garrison activated, responded to threat 17471 | -8/Materials | Discovered exit to Factory (range 16) 17555 | -8/Materials | Repaired Lightning Gun 18089 | -8/Materials | Learned Factory trap positions 18124 | -8/Materials | Learned 4 Recycling zone layouts 18170 | -8/Materials | Learned Factory emergency access door positions 18220 | -8/Materials | Learned Storage emergency access door positions 20038 | -8/Materials | Repaired Arm. Huge Wheel 20068 | -8/Materials | Repaired Rnf. Fission Core 20353 | -8/Materials | First assault squad dispatched 21045 | -8/Materials | Entered Factory 21045 | -7/Factory | Evolved 2 slots: Utility x2 21046 | -7/Factory | Loaded intel: 109 trap records 21562 | -7/Factory | Repaired Hrd. Medium Armor Plating 21725 | -7/Factory | Discovered new exit (range 5) 21730 | -7/Factory | Identified exit to Factory 22238 | -7/Factory | Identified exit to Lower Caves 23139 | -7/Factory | Central database locked down 23747 | -7/Factory | Repaired Proton Missile Launcher+? 23752 | -7/Factory | Fabricated K-01 Serf (x4) 23823 | -7/Factory | Lost 4 allies 23837 | -7/Factory | Found Prototype Launcher 24032 | -7/Factory | Identified Rocket Array 24076 | -7/Factory | Learned location of 1 exit from Upper Caves 24112 | -7/Factory | Learned location of 2 exits from Archives 24123 | -7/Factory | Fabricated Rocket Array (x1) 24138 | -7/Factory | Learned Extension stockpile data 24154 | -7/Factory | Learned Hub_04(d) trap positions 24219 | -7/Factory | Learned location of 1 exit from Extension 24351 | -7/Factory | Entered Lower Caves 24485 | -7/Lower Caves | Attracted the attention of an 0b10 checkpoint 24623 | -7/Lower Caves | Learned Factory machine intel 25329 | -7/Lower Caves | Identified exit to Lower Caves 25350 | -7/Lower Caves | Entered an active Warlord outpost 25374 | -7/Lower Caves | Learned location of 1 exit from Factory 25374 | -7/Lower Caves | Learned Research emergency access door positions 25374 | -7/Lower Caves | Learned Extension stockpile data 26711 | -7/Lower Caves | Ambushed by research squad 26731 | -7/Lower Caves | Spotted IJ-JSO(g) 26747 | -7/Lower Caves | Destroyed IJ-JSO(g) 26772 | -7/Lower Caves | Lost 3 allies 26921 | -7/Lower Caves | Learned location of 1 exit from Factory 26921 | -7/Lower Caves | Learned Research terminal intel 27235 | -7/Lower Caves | Entered another Lower Caves area 27260 | -7/Lower Caves | Discovered exit to Factory (range 15) 27296 | -7/Lower Caves | Learned location of 1 exit from Factory 28605 | -7/Lower Caves | Spotted B-75 Beast 29046 | -7/Lower Caves | Encountered a Warlord checkpoint 29223 | -7/Lower Caves | Discovered new exit (range 5) 29228 | -7/Lower Caves | Identified exit to Data Miner 29510 | -7/Lower Caves | Entered Data Miner 29510 | -7/Data Miner | Discovered new exit (range 6) 29539 | -7/Data Miner | Met Data Miner 29573 | -7/Data Miner | Learned location of Section 7 (-2) 29573 | -7/Data Miner | Acquired the access code to Warlord's prototype stash 29597 | -7/Data Miner | Received God Mode back door access code from Data Miner 29635 | -7/Data Miner | Identified exit to Proximity Caves 29639 | -7/Data Miner | Entered Proximity Caves 30258 | -6/Proximity Caves | Attracted the attention of an 0b10 checkpoint 31543 | -6/Proximity Caves | Discovered exit to Factory (range 9) 31968 | -6/Proximity Caves | Spotted B-75 Beast 32287 | -6/Proximity Caves | Entered Factory 32287 | -6/Factory | Evolved 2 slots: Utility x2 32288 | -6/Factory | Identified exit to Factory 32288 | -6/Factory | Identified exit to Lower Caves 32289 | -6/Factory | Loaded intel: 281 machine locations 32588 | -6/Factory | Discovered exit to Lower Caves (range 16) 32608 | -6/Factory | Garrison activated, responded to threat 32719 | -6/Factory | Repaired Broken Adv. Myomer Leg 32885 | -6/Factory | Lost 4 parts (2u2w) 33350 | -6/Factory | Incoming investigation squad redirected 33513 | -6/Factory | Fabricated Q-thruster? 33524 | -6/Factory | Lost 3 parts (1n2u) 34625 | -6/Factory | Fabricated Lgt. Regenerative Plating? 34643 | -6/Factory | Lost 3 parts (2u1w) 34737 | -6/Factory | First assault squad dispatched 34843 | -6/Factory | Lost 3 parts (2u1w) 35540 | -6/Factory | Build established: Scavenger-Mutant 35776 | -6/Factory | Incoming investigation squad redirected 35834 | -6/Factory | Repaired Antimatter Cannon 35914 | -6/Factory | Learned location of 1 exit from Proximity Caves 35957 | -6/Factory | Learned location of 2 exits from Archives 36056 | -6/Factory | Learned 2 Hub_04(d) zone layouts 36131 | -6/Factory | Learned 2 Proximity Caves zone layouts 36152 | -6/Factory | Build established: Skirmisher 37023 | -6/Factory | Core integrity fell below 50% 37110 | -6/Factory | Build established: Mutant 37119 | -6/Factory | Entered Lower Caves 37630 | -6/Lower Caves | Discovered new exit (range 113) 38347 | -6/Lower Caves | Encountered a Warlord checkpoint 38366 | -6/Lower Caves | Learned Factory terminal intel 38481 | -6/Lower Caves | Learned Factory security intel 38780 | -6/Lower Caves | Entered an active Warlord outpost 39649 | -6/Lower Caves | Identified exit to Lower Caves 40115 | -6/Lower Caves | Entered another Lower Caves area 40957 | -6/Lower Caves | Learned Factory machine intel 42272 | -6/Lower Caves | Discovered new exit (range 15) 42275 | -6/Lower Caves | Encountered a Master Thief 42275 | -6/Lower Caves | Encountered a Master Thief 42275 | -6/Lower Caves | Encountered a Master Thief 42275 | -6/Lower Caves | Encountered a Master Thief 42276 | -6/Lower Caves | Deploy-a-Sentry stolen by Master Thief 42279 | -6/Lower Caves | Encountered a Master Thief 42280 | -6/Lower Caves | Adv. Myomer Leg stolen by Master Thief 42282 | -6/Lower Caves | Remote Shield stolen by Master Thief 42309 | -6/Lower Caves | Build established: Commander-Mutant 42317 | -6/Lower Caves | 8R-AWN's Boregun stolen by Master Thief 42584 | -6/Lower Caves | Identified exit to Zion 43422 | -6/Lower Caves | Entered Zion 43422 | -6/Zion | Accompanied by 4 allies 43548 | -6/Zion | System corruption cleaned by Quarantine Array 43833 | -6/Zion | Discovered new exit (range 11) 44758 | -6/Zion | Learned location of Armory (-3) 44761 | -6/Zion | Learned Factory interactive machine intel 46773 | -6/Zion | Found GAL Module 48425 | -6/Zion | Build established: Derelict-Mutant 48547 | -6/Zion | Met Imprinter 48877 | -6/Zion | Build established: Commander-Mutant 49475 | -6/Zion | Attacked by Zionites 49480 | -6/Zion | Allies destroyed Imprinter 49523 | -6/Zion | Lost 3 allies 49536 | -6/Zion | Extracted access codes from Imprinter's data core 50219 | -6/Zion | Build established: Derelict-Mutant 50556 | -6/Zion | Opened final containment barrier to the Deep Caves 50654 | -6/Zion | Discovered new exit (range 3) 50654 | -6/Zion | Saw the warning signs outside the Deep Caves entrance 50658 | -6/Zion | Identified exit to Deep Caves 50661 | -6/Zion | Entered Deep Caves 50790 | -6/Deep Caves | Build established: Mutant 51284 | -6/Deep Caves | Z-Facility disabled 51681 | -6/Deep Caves | Discovered new exit (range 6) 51694 | -6/Deep Caves | Identified exit to Proximity Caves 52005 | -6/Deep Caves | Build established: Derelict-Mutant 52265 | -6/Deep Caves | Spotted AG-48484 52293 | -6/Deep Caves | Core integrity fell below 20% 52629 | -6/Deep Caves | Build established: Scavenger-Mutant 52720 | -6/Deep Caves | Destroyed by AG-48484 with Assembled Focal Cannon Last Messages --------------- 51892_ Imp. Trap Extractor dropped Dirty Bomb Trap. 51892_ Installed Dirty Bomb Trap. 52021_ Imp. Trap Extractor dropped Dirty Bomb Trap. 52032_ Imp. Trap Extractor collected Dirty Bomb Trap. 52073_ Imp. Trap Extractor dropped Dirty Bomb Trap. 52073_ Installed Dirty Bomb Trap. 52078_ Imp. Trap Extractor extracted Dirty Bomb Trap (stored). 52149_ Dropped Imp. Trap Extractor. 52169_ Dropped Imp. Field Recycling Unit. 52182_ Dropped Hvy. Plasma Cannon. 52271_ AG-48484: "DSI9AT1D G8OHIBQ29FWG 26R186 QD12WHW8W33 TDK1 81FTS" 52697_ Hvy. Riot Gun destroyed. 52697_ Thermal Shield destroyed. 52701_ Proton Cannon destroyed. 52701_ Imp. Propulsion Shielding destroyed. 52705_ AG-48484 IFF system glitched. 52705_ 8N-DJG(b) destroyed. Map ----- +----------------------------------------------------+ | ??????????????????????????????????## | | ??????????????????????????????????# | | ??????????????????????????????????# | | ??????????????????????????????????## | | ????????????????????????? ???????## !!] | | ??????????????????????? ??????## ## | | ???????????????????? #?????# ### | | ?????????????????? * #????# #?### | | ???????????????? #????# #???? | | ??????????????? * #????# #???? | | ????????????? ** b * * #????# ####? | | ????????????? #????## #? | | ??????????? M #????## #? | | ?????????? s #????# ## #? | | ?????????" ] ##???# ### #? | | ????????"" * = ##??## ##?# #? | | ????????# M l ] ;#???# ##??# #? | | ????????" ! g #????#^#???# #? | | ????????" ! ! ###### ##### #? | | ????????" ] ^ #? | | ????????"""G ] #######? | | ????????" % #????### | | ????????"" ##### #????# | | ????????" l ## ###### | | ?????????" "# | | ????????" @ # # ## | | ????????" #;;# ;# ## #### #### | | ????????""" ??#### ## ####??##### ##??### | | ?????????" ???????#### #?????????####?????? | | ???????????????????????#???????????????????? | | | | | | | | | | | | | | | | | | | | | | | | | | | | | | | | | | | | | | | | | +----------------------------------------------------+ Best States ------------- Heat Dissipation 82 Energy Generation 19 Energy Capacity 500 Matter Stores 300 Matter Capacity 300 Sight Range 18 Robot Scan Range 19 Terrain Scan Range 20 Terrain Scan Density 10 Cloak Strength 2 Corruption Containment 12 Armor Coverage 900 Resistance: TH 20 Resistance: EX 90 Resistance: EM 25 Propulsion Shielding 66 Weapon Cycling 25 Evasion (%) 55 Targeting Accuracy 8 Target Analysis 6 Core Analysis 6 Armor Integrity Analysis 40 Recoil Reduction 8 Matter Filtering 30 Particle Charging 20 Kinecelleration 30 Offensive Hacking 10 Defensive Hacking 10 Trap Extractor Capacity 6 Item Schematics ----------------- Hvy. Ion Engine | -9/Materials | Scanalyzed Shock Bomb Launcher | -9/Materials | Scanalyzed Hcp. Storage Unit | -9/Materials | Scanalyzed Hvy. EM Shotgun | -8/Materials | Scanalyzed Deuterium Engine | -8/Materials | Extracted Hvy. Assault Rifle | -8/Materials | Extracted ECM Suite | -8/Materials | Extracted Shock Rifle | -8/Materials | Extracted Imp. Sensor Array | -8/Materials | Extracted Imp. Terrain Scanner | -8/Materials | Extracted Imp. Treads | -8/Materials | Extracted Sml. Storage Unit | -8/Materials | Extracted Cesium-ion Thruster | -8/Materials | Extracted Shield Generator | -8/Materials | Extracted Imp. Terrain Scan Processor | -8/Materials | Extracted Field Laser | -8/Materials | Extracted Seismic Detector | -8/Materials | Extracted Lgt. Nuclear Core | -8/Materials | Extracted Cooling System | -8/Materials | Extracted Lrg. Storage Unit | -8/Materials | Extracted Mace | -8/Materials | Extracted Assault Cannon | -8/Materials | Extracted Imp. Targeting Computer | -8/Materials | Extracted Cryofiber Web | -8/Materials | Extracted Adv. Beam Rifle | -8/Materials | Scanalyzed Proton Missile Launcher | -7/Factory | Scanalyzed Rocket Array | -7/Factory | Scanalyzed Combat Drone Bay | -7/Data Miner | Free Lgt. Regenerative Plating | -7/Data Miner | Free Cld. Cesium-ion Thruster | -7/Data Miner | Free Thermal Defense Suite | -7/Data Miner | Free Ion Burst Cannon | -7/Data Miner | Free Antigrav System | -7/Data Miner | Free Adv. Field Recycling Unit | -7/Data Miner | Free Wave Gun | -7/Data Miner | Free Antimatter Cannon | -6/Factory | Scanalyzed Hyp. Gauss Rifle | -6/Zion | Archive Imp. Launcher Guidance Computer | -6/Zion | Archive Plasma Rifle | -6/Zion | Archive Tesla Rifle | -6/Zion | Archive KE Penetrator | -6/Zion | Archive Adv. Heat Sink | -6/Zion | Archive Matter Neutralizer | -6/Zion | Archive Antimatter Reactor | -6/Zion | Archive Remote Shield | -6/Zion | Archive Point Defense System | -6/Zion | Archive EM Shield | -6/Zion | Archive Adv. Plasma Cannon | -6/Zion | Archive Imp. Trap Scanner | -6/Zion | Archive Neutrino Core | -6/Zion | Archive Lgt. Fission Core | -6/Zion | Archive Robot Schematics ------------------ X-62 Marksman | -7/Data Miner | Free E-15 Imp | -7/Data Miner | Free A-15 Conveyor | -7/Data Miner | Free H-55 Commando | -7/Data Miner | Free M-22 Extractor | -7/Data Miner | Free B-60 Warrior | -7/Data Miner | Free B-48 Gladiator | -7/Data Miner | Free A-02 Transporter | -6/Zion | Archive T-07 Excavator | -6/Zion | Archive S-27 Virus | -6/Zion | Archive Fabricated ------------ K-01 Serf | x4 | -7/Factory | Preloaded Rocket Array | x1 | -7/Factory Q-thruster | x2 | -6/Factory | Preloaded Lgt. Regenerative Plating | x1 | -6/Factory Repaired ---------- Particle Gun | 60% | -10/Materials Hrd. Light Armor Plating | 16% | -9/Materials Imp. EM Shotgun | 8% | -9/Materials Lightning Gun | 18% | -8/Materials Arm. Huge Wheel | 52% | -8/Materials Rnf. Fission Core | 58% | -8/Materials Hrd. Medium Armor Plating | 34% | -7/Factory Proton Missile Launcher | 3% | -7/Factory Adv. Myomer Leg | 60% | -6/Factory | Broken Antimatter Cannon | 5% | -6/Factory Studied --------- Aluminum Leg | -9/Materials | Hacked Arm. Huge Wheel | -7/Factory | Hacked Proton Missile Launcher | -7/Factory | Hacked Alien Tech Used ----------------- None Achievements -------------- Fishing Tech Challenges ------------ None Game ------ Seed MetamassIonicBallwheel Manual? 0 Play Time 06:38:37 Cumulative 709.9 hours Start 2025.11.17 @ 01:00:13 End 2025.11.18 @ 03:40:51 Sessions 3 Manual Loads 0 Difficulty Rogue Special Mode None Game No. 495 Rogue 495 Adventurer 0 Explorer 0 Win Type - Total 1 Types 1/0/0/0/0/0/0/0/0/0 Lore% 68 Gallery% 67 Achievement% 45 Wizard Run 0 Options --------- Layout 1 ASCII 0 Keyboard 0 Movement Mouse Keybinds 0 Fullscreen 1 Font 20/SmallcapsGlow Map View 54x42 Zoom Use 0% Tactical HUD 1 Map Filters NONE Filters NONE Steam 1 RUN: 69a89685-cdf0-4009-a5a1-69f6a0a6dd20